bitfinex-derivatives/quotes_ETHF0:USTF0_20241007
["timestamp","ask_amount","ask_price","bid_price","bid_amount"]
[1728293730249,0.40696,2457.6,2457.2,3.2078]
[1728293730547,0.7659,2457.7,2457.2,3.9438]
[1728293730753,0.7659,2457.7,2457.3,0.407]
[1728293731049,1.78328,2457.7,2457.2,0.736]
[1728293731250,0.40697,2457.6,2457.4,0.40699]
[1728293731450,0.7659,2457.7,2457.4,0.40699]
[1728293732146,4.2251,2457.9,2457.8,0.40692]
[1728293732147,3.61471,2457.9,2457.8,0.40692]
[1728293732345,7.0178,2458.2,2457.5,3.81]
[1728293732547,0.40691,2457.9,2457.8,0.40692]
[1728293732855,8.03497,2458.2,2457.7,0.40693]
[1728293733152,0.40692,2457.9,2457.7,0.40694]
[1728293733451,0.40692,2457.8,2457.7,0.40694]
[1728293733660,0.40694,2457.7,2457.6,0.7428]
[1728293734152,4.0688,2457.7,2457.6,1.14976]
[1728293734648,0.40694,2457.7,2457.6,1.14976]
[1728293734947,0.40692,2457.9,2457.7,0.40693]
[1728293735155,0.40691,2457.9,2457.7,0.40693]
[1728293735354,4.2169,2458.0,2457.8,0.40691]
[1728293735549,3.81,2458.2,2457.7,1.5493]
[1728293735751,0.4069,2458.0,2457.9,0.40691]
[1728293736254,0.4069,2458.0,2457.9,0.4069]
[1728293736654,3.81,2458.2,2457.7,1.5493]
[1728293736858,3.81,2458.2,2457.8,0.40692]
[1728293737153,0.40691,2458.0,2457.9,0.40691]
[1728293737351,0.40689,2458.1,2457.7,1.5493]
[1728293737551,0.40689,2458.0,2457.9,0.4069]
[1728293737955,3.2078,2458.5,2457.8,4.82732]
[1728293738156,3.2078,2458.5,2458.4,0.40682]
[1728293738350,3.2078,2458.5,2458.3,0.40683]
[1728293738351,0.40683,2458.4,2458.3,0.40683]
[1728293738747,0.40679,2458.7,2458.5,0.4068]
[1728293738952,3.9394,2458.8,2458.5,0.4068]
[1728293739151,0.4068,2458.6,2458.4,0.40682]
[1728293739454,0.4068,2458.6,2458.5,0.40681]
[1728293739660,0.40678,2458.7,2458.5,0.40681]
[1728293740251,4.34617,2458.8,2458.4,0.40682]
[1728293740452,4.34617,2458.8,2458.6,0.40679]
[1728293740656,4.34617,2458.8,2458.3,0.7245]
[1728293740657,0.40679,2458.7,2458.4,0.40682]
[1728293740854,0.40679,2458.6,2458.4,0.40682]
[1728293741767,0.40679,2458.6,2458.3,0.7245]
[1728293741768,0.40679,2458.6,2458.5,0.40681]
[1728293742052,0.40679,2458.6,2458.4,0.40681]
[1728293742257,0.40681,2458.5,2458.3,0.7245]
[1728293742446,3.2078,2458.5,2458.2,0.7835]
[1728293742652,0.40684,2458.3,2458.2,0.7835]
[1728293743453,0.40692,2457.9,2457.7,0.40693]
[1728293743759,0.40691,2457.9,2457.8,0.7098]
[1728293745760,3.61471,2457.9,2457.8,0.7098]
[1728293746264,7.68351,2457.9,2457.8,0.7098]
[1728293750064,7.2766,2457.9,2457.1,4.22538]
[1728293750367,0.40698,2457.5,2457.4,0.40698]
[1728293751170,1.01732,2457.8,2457.2,1.5224]
[1728293751370,0.40698,2457.5,2457.4,0.40698]
[1728293751563,0.40697,2457.6,2457.5,0.40697]
[1728293752063,1.01732,2457.8,2457.4,0.40698]
[1728293752064,0.40698,2457.5,2457.4,0.40698]
[1728293752569,0.40699,2457.4,2457.3,0.407]
[1728293752968,1.17706,2457.7,2457.5,0.40697]
[1728293753162,0.40696,2457.6,2457.5,0.40697]
[1728293754064,0.7701,2457.7,2457.2,1.5224]
[1728293754065,1.17705,2457.7,2457.6,0.40696]
[1728293754272,1.17705,2457.7,2457.2,2.53995]
[1728293754273,0.40696,2457.6,2457.5,0.40697]
[1728293754457,1.17705,2457.7,2457.5,0.40697]
[1728293754768,0.7701,2457.7,2457.2,2.53995]
[1728293755066,0.40696,2457.6,2457.5,0.40696]
[1728293755269,0.7701,2457.7,2457.2,1.5224]
[1728293755570,0.40696,2457.6,2457.5,0.40696]
[1728293756662,0.7701,2457.7,2457.2,1.5224]
[1728293756968,0.40698,2457.5,2457.4,0.40698]
[1728293757468,0.40698,2457.5,2457.2,1.5224]
[1728293757469,0.40696,2457.6,2457.5,0.40696]
[1728293759170,0.40698,2457.5,2457.4,0.40698]
[1728293759675,0.40701,2457.3,2457.2,0.7465]
[1728293760663,4.22526,2457.5,2456.8,1.5554]
[1728293760871,0.728,2457.2,2456.9,1.17516]
[1728293761072,0.40706,2457.0,2456.9,1.17516]
[1728293761569,0.40706,2457.0,2456.9,0.7681]
[1728293761777,0.40706,2457.0,2456.9,1.17517]
[1728293762171,0.40706,2457.0,2456.9,0.7681]
[1728293762476,0.40706,2457.0,2456.9,1.17517]
[1728293762876,0.40706,2457.0,2456.9,0.7681]
[1728293763267,0.40706,2457.0,2456.4,2.49995913]
[1728293763268,8.7604,2457.0,2456.4,0.7339]
[1728293763573,8.7604,2457.0,2456.5,0.40713]
[1728293763574,0.40712,2456.7,2456.5,0.40713]
[1728293763970,1.17442,2456.7,2456.5,0.40713]
[1728293764169,1.17442,2456.7,2456.1,3.2078]
[1728293764170,5.4573,2456.7,2456.1,3.2078]
[1728293764367,4.21718,2456.3,2456.1,0.40719]
[1728293764568,4.21718,2456.3,2456.0,0.7581]
[1728293764569,0.4072,2456.2,2456.0,0.7581]
[1728293764767,3.81,2456.3,2456.0,0.7581]
[1728293764768,4.21718,2456.3,2456.0,0.7581]
[1728293765170,4.21718,2456.3,2456.1,0.40719]
[1728293765679,4.21714,2456.5,2456.2,4.47839]
[1728293765981,3.81,2456.3,2456.1,0.4072]
[1728293766281,0.40721,2456.1,2456.0,1.16532]
[1728293766664,3.81,2456.3,2456.1,0.4072]
[1728293766870,0.40721,2456.1,2456.0,0.7581]
[1728293767071,3.81,2456.2,2456.0,0.7581]
[1728293767072,4.5972,2456.2,2456.0,0.7581]
[1728293767384,3.81,2456.4,2456.3,0.40717]
[1728293768067,4.5972,2456.7,2456.1,0.7623]
[1728293768278,7.0178,2457.1,2457.0,0.40706]
[1728293768581,7.42485,2457.1,2457.0,0.40706]
[1728293768781,0.40708,2456.9,2456.8,0.40708]
[1728293768978,0.4071,2456.8,2456.6,1.89601]
[1728293769278,3.81,2456.7,2456.6,1.13372]
[1728293769478,3.81,2456.7,2456.6,0.7266]
[1728293769775,4.21711,2456.7,2456.6,0.7266]
[1728293770282,8.6006,2456.7,2456.2,0.7828]
[1728293770577,8.6006,2456.7,2455.9,3.61503]
[1728293770578,0.40722,2456.0,2455.9,3.61503]
[1728293770776,0.40722,2456.0,2455.9,0.40723]
[1728293770979,4.21722,2456.1,2455.8,0.724]
[1728293771281,3.81,2456.1,2456.0,0.40722]
[1728293771474,3.2078,2456.2,2456.1,0.40721]
[1728293772085,3.2078,2456.2,2456.1,4.47841]
[1728293772576,3.2078,2456.6,2456.1,4.0712]
[1728293772787,0.40715,2456.5,2456.4,0.40715]
[1728293773180,0.40717,2456.4,2455.8,4.94993]
[1728293773379,0.40714,2456.5,2456.2,0.40718]
[1728293773683,4.22563,2456.6,2456.3,1.15636]
[1728293773892,0.40716,2456.4,2456.3,0.7492]
[1728293774380,0.40722,2456.0,2455.9,0.40723]
[1728293774584,0.40722,2456.0,2455.9,0.7492]
[1728293775082,0.40721,2456.1,2456.0,0.40721]
[1728293775289,0.7697,2456.2,2455.9,0.7492]
[1728293775492,0.40722,2456.0,2455.9,0.7492]
[1728293777181,0.40727,2455.8,2455.6,0.40728]
[1728293777483,0.40727,2455.8,2455.7,0.7429]
[1728293777687,0.40727,2455.8,2455.7,1.15017]
[1728293778578,0.40727,2455.8,2455.7,0.7429]
[1728293778778,0.40727,2455.8,2455.7,0.40727]
[1728293778779,4.47926,2455.8,2455.7,0.40727]
[1728293779088,0.40727,2455.7,2455.6,1.15019]
[1728293779387,0.40727,2455.7,2455.6,0.7429]
[1728293779588,0.40727,2455.7,2455.6,1.15019]
[1728293779880,5.70812,2455.9,2455.6,1.15019]
[1728293780088,5.70812,2455.9,2455.6,0.7429]
[1728293780089,0.40727,2455.7,2455.6,0.7429]
[1728293780480,9.16927,2455.7,2455.6,0.7429]
[1728293780991,1.01825,2455.6,2455.1,0.40737]
[1728293781189,1.01829,2455.5,2455.2,0.7845]
[1728293781489,5.09734,2455.3,2455.2,0.7845]
[1728293781791,0.40739,2455.0,2454.5,0.40747]
[1728293782082,5.70837,2455.3,2455.0,0.40739]
[1728293782083,4.36736,2455.2,2455.0,0.40739]
[1728293782282,0.4074,2455.0,2454.8,0.40741]
[1728293782477,0.40739,2455.0,2454.5,0.7868]
[1728293782681,5.09738,2455.1,2454.9,0.4074]
[1728293782881,4.69,2455.1,2454.6,0.7445]
[1728293783183,4.69,2455.1,2454.7,0.40743]
[1728293783385,0.4074,2455.0,2454.6,0.7445]
[1728293783591,4.69,2455.1,2454.8,0.40742]
[1728293783592,0.40741,2454.9,2454.8,0.40742]
[1728293783787,0.40741,2454.9,2454.7,0.40743]
[1728293783976,0.40739,2455.0,2454.6,1.15194]
[1728293784177,0.40745,2454.6,2454.5,0.7868]
[1728293784378,0.40745,2454.6,2453.8,0.40758]
[1728293784379,0.40756,2454.0,2453.8,0.40758]
[1728293784584,1.01869,2454.5,2453.9,0.7868]
[1728293784585,3.2078,2454.3,2453.9,0.7868]
[1728293784785,0.40755,2454.0,2453.9,0.7868]
[1728293784983,0.4076,2453.8,2453.5,3.61543]
[1728293785183,5.0976,2453.8,2453.5,3.61543]
[1728293785382,5.0976,2453.8,2453.5,3.2078]
[1728293785383,0.40761,2453.7,2453.5,3.2078]
[1728293785591,4.69,2453.8,2453.4,0.40765]
[1728293785897,5.09759,2453.8,2453.5,0.40763]
[1728293786084,0.40761,2453.7,2453.3,1.19446]
[1728293786280,0.40763,2453.6,2453.3,0.7868]
[1728293786487,0.40763,2453.6,2453.3,1.19447]
[1728293786698,0.40762,2453.6,2453.3,1.19446]
[1728293786887,4.69,2453.8,2453.3,0.7868]
[1728293786888,0.40764,2453.5,2453.3,0.7868]
[1728293787088,5.70899,2453.8,2453.3,0.7868]
[1728293787283,0.40765,2453.4,2453.3,0.7868]
[1728293787484,4.69,2453.5,2452.9,3.2078]
[1728293787691,0.7881,2453.9,2452.9,3.2078]
[1728293787692,4.69,2453.2,2452.9,3.2078]
[1728293787887,0.7881,2453.9,2453.2,0.40768]
[1728293787888,5.09764,2453.5,2453.2,0.40768]
[1728293788089,4.69,2453.5,2452.9,3.2078]
[1728293788295,3.9959,2453.9,2453.3,3.2078]
[1728293788608,3.2078,2453.9,2453.4,1.564]
[1728293788791,4.69,2453.8,2453.4,1.564]
[1728293789094,4.69,2453.8,2453.3,3.2078]
[1728293789095,4.69,2453.8,2453.7,0.4076]
[1728293789294,4.69,2453.8,2453.3,3.2078]
[1728293789494,4.69,2453.8,2453.7,0.4076]
[1728293789689,4.69,2453.8,2453.3,3.2078]
[1728293789890,4.69,2453.8,2453.4,0.40765]
[1728293789891,5.0976,2453.8,2453.4,0.40765]
[1728293790190,4.69,2453.8,2453.4,0.40764]
[1728293790398,0.40766,2453.4,2453.1,1.18859]
[1728293790593,4.69,2453.5,2453.0,1.21651]
[1728293790901,0.40769,2453.2,2453.0,0.8088]
[1728293791197,0.4077,2453.1,2453.0,0.8088]
[1728293791389,4.69,2453.2,2452.6,3.9887]
[1728293791591,4.69,2452.9,2452.3,3.2078]
[1728293791987,4.69,2452.6,2452.3,3.2078]
[1728293792196,4.22723,2452.7,2452.0,0.7389]
[1728293792491,4.69,2452.6,2452.0,3.9467]
[1728293792698,0.40783,2452.4,2452.0,1.14678]
[1728293792887,4.69,2452.6,2452.0,0.7389]
[1728293793092,0.40784,2452.3,2452.0,0.7389]
[1728293793302,5.09779,2452.6,2452.2,3.61565]
[1728293793497,4.69,2452.6,2452.3,0.40783]
[1728293793697,5.4621,2452.8,2452.2,3.2078]
[1728293793892,0.40779,2452.7,2452.3,0.40783]
[1728293794293,0.40779,2452.7,2452.1,1.5759]
[1728293794294,5.86987,2452.8,2452.4,3.61562]
[1728293794599,4.69,2452.8,2452.1,4.7837]
[1728293794795,0.40778,2452.7,2452.4,0.40781]
[1728293795307,4.69,2452.8,2452.3,0.40782]
[1728293795494,8.91707,2453.1,2452.1,4.7837]
[1728293795696,3.2078,2453.1,2452.6,3.2078]
[1728293796000,0.40773,2453.0,2452.7,1.99216]
[1728293796599,3.2078,2453.1,2452.7,1.5844]
[1728293796808,3.61551,2453.1,2452.8,0.40775]
[1728293797301,0.40772,2453.0,2452.7,1.99215]
[1728293797503,3.2078,2453.1,2452.8,0.40775]
[1728293797697,3.2078,2453.1,2452.7,1.99216]
[1728293797898,0.40772,2453.0,2452.7,1.99216]
[1728293798104,0.40772,2453.0,2452.8,0.40775]
[1728293798401,3.2078,2453.1,2452.7,1.5844]
[1728293798603,0.40773,2453.0,2452.7,1.99216]
[1728293798801,0.40775,2452.9,2452.7,1.5844]
[1728293798999,0.40775,2452.8,2452.7,0.7733]
[1728293799197,5.09775,2452.8,2452.7,0.7733]
[1728293799499,11.9746,2452.8,2452.2,1.21355]
[1728293799700,4.69,2452.6,2452.1,3.2078]
[1728293799892,0.40785,2452.3,2452.0,1.17667]
[1728293800098,0.40787,2452.1,2452.0,0.7688]
[1728293800303,4.98885,2452.5,2452.0,0.7688]
[1728293800499,0.40787,2452.1,2452.0,0.7688]
[1728293800694,0.40792,2451.8,2451.7,3.2078]
[1728293801402,1.02006,2451.2,2450.1,1.5723887]
[1728293801600,0.40809,2450.8,2450.5,0.40813]
[1728293801792,0.40809,2450.8,2450.0,0.9337]
[1728293801793,3.2078,2450.8,2450.0,0.9337]
[1728293801999,3.2078,2450.8,2450.7,0.4081]
[1728293802193,3.2078,2450.8,2450.0,5.16203]
[1728293802496,3.2078,2450.8,2450.7,0.4081]
[1728293803293,3.2078,2450.8,2450.0,4.1415]
[1728293803600,3.2078,2450.8,2450.6,0.40811]
[1728293803799,3.2078,2450.8,2450.5,0.40813]
[1728293804210,3.2078,2450.8,2450.0,0.9337]
[1728293804211,7.8978,2450.8,2450.0,0.9337]
[1728293804396,1.02018,2451.0,2450.0,0.9337]
[1728293804397,3.61584,2451.1,2450.4,3.2078]
[1728293804600,0.40805,2451.0,2450.7,0.40809]
[1728293804798,3.2078,2451.1,2451.0,0.40805]
[1728293805004,3.2078,2451.2,2450.5,1.78285]
[1728293805199,3.2078,2451.2,2450.5,0.7625]
[1728293805904,3.2078,2451.2,2451.0,0.40805]
[1728293806099,3.61583,2451.2,2450.9,0.40806]
[1728293806294,0.7704,2451.2,2450.9,4.08]
[1728293806502,0.40795,2451.6,2451.3,0.40799]
[1728293806701,3.2078,2451.7,2451.5,0.40796]
[1728293807004,0.40796,2451.6,2451.3,0.408]
[1728293807207,3.2078,2451.7,2451.2,0.7601]
[1728293807399,3.2078,2451.7,2451.5,0.40796]
[1728293807598,0.40793,2451.8,2451.2,0.7601]
[1728293807599,3.2078,2452.0,2451.2,0.7601]
[1728293807808,3.2078,2451.7,2451.2,0.7601]
[1728293808004,0.40795,2451.6,2451.3,0.408]
[1728293808201,0.40797,2451.5,2451.2,1.16811]
[1728293808406,3.2078,2451.7,2451.2,0.7601]
[1728293808706,7.11042,2452.1,2451.2,0.7601]
[1728293808903,3.2078,2452.0,2451.2,0.7601]
[1728293809297,3.2078,2452.0,2451.8,0.40791]
[1728293810298,4.0784,2451.9,2450.7,3.2078]
[1728293810499,4.0784,2451.9,2450.2,0.8039]
[1728293810500,0.40806,2451.0,2450.2,0.8039]
[1728293810710,3.2078,2451.1,2450.7,0.40809]
[1728293811006,3.2078,2451.1,2450.5,0.40813]
[1728293811400,0.40806,2451.0,2450.5,0.40813]
[1728293811604,3.2078,2451.1,2450.2,4.0117]
[1728293811807,3.2078,2451.4,2451.1,0.40803]
[1728293812008,3.2078,2451.6,2451.2,0.40801]
[1728293812414,3.61576,2451.6,2451.1,0.40802]
[1728293812605,0.40797,2451.5,2450.7,3.0588]
[1728293812805,3.2078,2451.6,2451.0,0.40804]
[1728293812806,0.40799,2451.4,2451.0,0.40804]
[1728293813002,0.40798,2451.5,2451.1,0.40803]
[1728293813310,0.40798,2451.5,2451.0,0.40804]
[1728293813508,0.40799,2451.4,2451.0,0.40804]
[1728293814109,3.2078,2451.3,2451.0,0.40804]
[1728293814308,3.6158,2451.3,2451.0,0.40804]
[1728293814503,3.2078,2451.3,2450.7,2.58206]
[1728293814716,0.7986,2451.6,2450.7,2.58206]
[1728293815006,0.7986,2451.6,2451.2,0.40801]
[1728293815007,1.20657,2451.6,2451.2,0.40801]
[1728293815211,0.40797,2451.5,2451.2,0.40801]
[1728293815416,3.61574,2451.7,2450.8,1.02018]
[1728293815710,3.61574,2451.7,2451.3,0.408]
[1728293815711,0.40795,2451.6,2451.3,0.408]
[1728293816012,3.2078,2451.7,2450.9,0.7773]
[1728293816212,0.40794,2451.7,2451.4,0.40798]
[1728293816412,9.2964,2452.0,2451.4,0.40797]
[1728293816618,0.40794,2451.7,2451.4,0.40797]
[1728293817414,9.2964,2452.0,2451.4,0.40797]
[1728293817614,0.40795,2451.7,2451.4,0.40797]
[1728293818205,3.2078,2451.7,2450.9,3.9851]
[1728293818520,0.408,2451.4,2451.1,0.40803]
[1728293818709,4.22768,2451.7,2451.1,0.40803]
[1728293819009,0.408,2451.4,2451.1,0.40803]
[1728293819217,3.2078,2451.4,2450.9,1.18536]
[1728293819413,0.40804,2451.1,2450.9,1.18536]
[1728293819612,0.40809,2450.9,2450.6,0.40811]
[1728293819917,3.2078,2451.1,2450.6,0.40811]
[1728293819918,0.40809,2450.8,2450.6,0.40811]
[1728293820413,0.4081,2450.8,2450.5,0.40812]
[1728293820610,0.40804,2451.1,2450.9,0.40806]
[1728293820821,7.08955,2451.3,2450.5,3.2078]
[1728293821010,0.40808,2450.9,2450.7,0.40809]
[1728293821320,0.40809,2450.8,2450.6,0.40811]
[1728293821610,0.40809,2450.8,2450.4,0.7694]
[1728293821611,0.40814,2450.5,2450.4,0.7694]
[1728293822010,0.7795,2450.7,2450.0,0.2]
[1728293822211,0.40813,2450.6,2450.4,0.40815]
[1728293822409,0.7795,2450.7,2450.0,4.1907]
[1728293822610,0.40813,2450.6,2450.4,0.40815]
[1728293822810,0.7795,2450.7,2450.0,4.1907]
[1728293823115,0.40806,2451.0,2450.8,0.40808]
[1728293823315,3.2078,2451.1,2450.4,0.40815]
[1728293823316,0.4081,2450.8,2450.4,0.40815]
[1728293823508,1.02018,2450.9,2450.3,3.2078]
[1728293823714,1.02018,2450.9,2450.3,0.40816]
[1728293823715,0.40814,2450.5,2450.3,0.40816]
[1728293824011,4.22802,2450.8,2450.0,0.9829]
[1728293824012,3.2078,2450.8,2450.0,0.9829]
[1728293824216,0.40818,2450.3,2450.1,0.40819]
[1728293824418,5.11745249,2450.6,2450.1,0.40819]
[1728293824612,5.11745249,2450.6,2450.0,0.9829]
[1728293824613,1.02035,2450.5,2450.0,0.9829]
[1728293825111,3.2078,2450.5,2450.0,0.9829]
[1728293825317,0.4082,2450.2,2450.0,1.39111]
[1728293825613,0.4082,2450.1,2450.0,0.9829]
[1728293825811,4.71,2450.1,2450.0,0.2]
[1728293826011,4.71,2450.7,2450.6,0.40812]
[1728293826512,0.8226,2450.8,2450.7,0.4081]
[1728293826707,0.8226,2450.8,2450.2,5.90155913]
[1728293826904,0.8226,2450.8,2450.6,0.40811]
[1728293827111,0.8226,2450.8,2450.3,0.7813]
[1728293827312,0.8226,2450.8,2450.7,0.4081]
[1728293827611,0.8226,2450.8,2450.3,4.8621]
[1728293827612,4.71,2451.0,2450.3,5.91035913]
[1728293827804,4.71,2451.5,2451.1,0.40804]
[1728293828004,4.71,2451.5,2451.4,0.40799]
[1728293828212,0.806,2451.7,2451.6,0.40795]
[1728293829314,5.29,2452.0,2451.4,1.04825913]
[1728293829613,5.29,2452.0,2451.5,2.63640753]
[1728293829806,5.29,2452.0,2451.8,0.40791]
[1728293830412,5.69789,2452.0,2451.8,0.40792]
[1728293830819,5.29,2452.0,2451.8,0.40791]
[1728293831314,5.29,2452.0,2451.6,1.04825913]
[1728293831315,5.29,2452.0,2451.9,0.4079]
[1728293832512,2.04415,2452.3,2452.0,0.40788]
[1728293832819,1.6363,2452.3,2451.7,1.04825913]
[1728293833011,0.40788,2452.1,2451.6,4.25605913]
[1728293833207,0.40792,2451.8,2451.6,4.25605913]
[1728293833408,3.2078,2451.9,2451.4,1.04825913]
[1728293833607,0.40792,2451.8,2451.3,1.45624913]
[1728293833814,3.2078,2451.9,2451.3,1.45624913]
[1728293834110,0.40794,2451.7,2451.3,1.04825913]
[1728293834310,0.40794,2451.7,2451.3,1.45624913]
[1728293834518,0.40793,2451.8,2451.4,0.40798]
[1728293834816,0.40791,2451.9,2451.6,0.40795]
[1728293835013,5.29,2452.0,2451.4,1.04825913]
[1728293835316,5.69789,2452.0,2451.6,0.40794]
[1728293835707,5.69789,2452.0,2451.7,0.40793]
[1728293836106,0.40786,2452.2,2451.8,0.40791]
[1728293836312,0.40787,2452.2,2451.8,0.40791]
[1728293836613,1.6363,2452.3,2451.6,1.04825913]
[1728293836815,1.6363,2452.3,2451.9,0.4079]
[1728293837005,0.40787,2452.1,2451.9,0.4079]
[1728293837206,1.6363,2452.3,2451.9,0.4079]
[1728293837519,0.40786,2452.2,2451.9,0.4079]
[1728293837711,0.806,2452.3,2451.7,0.7705]
[1728293838014,1.21385,2452.3,2452.1,0.40786]
[1728293838217,0.40789,2452.0,2451.7,0.7705]
[1728293838421,0.806,2452.3,2451.8,0.40792]
[1728293838716,0.40795,2451.7,2451.4,0.40798]
[1728293838917,1.01972,2452.0,2451.4,0.40798]
[1728293839109,0.40794,2451.7,2451.4,0.40798]
[1728293839508,1.01972,2452.0,2451.5,0.40797]
[1728293839711,1.01972,2452.0,2451.2,5.08535913]
[1728293839917,4.0138,2452.3,2451.5,3.2078]
[1728293840112,0.806,2452.3,2451.9,3.2078]
[1728293840308,0.806,2452.3,2452.1,0.40786]
[1728293841014,1.21384,2452.3,2452.1,0.40786]
[1728293841413,1.21384,2452.3,2451.5,0.7881]
[1728293841414,0.806,2452.3,2451.5,0.7881]
[1728293841617,0.4079,2451.9,2451.7,0.40793]
[1728293841816,0.4079,2451.9,2451.6,0.40794]
[1728293842210,5.29,2452.1,2451.5,0.7881]
[1728293842514,0.40789,2452.0,2451.7,0.40792]
[1728293842716,5.29,2452.1,2451.5,0.7881]
[1728293842717,0.40786,2452.2,2452.0,0.40788]
[1728293842920,0.806,2452.3,2451.6,3.2078]
[1728293843223,0.806,2452.3,2451.8,1.01981]
[1728293843419,9.2514,2452.7,2452.3,0.40783]
[1728293843420,0.40782,2452.5,2452.3,0.40783]
[1728293843718,0.40779,2452.6,2452.0,1.01972]
[1728293843916,0.40779,2452.6,2452.4,0.40782]
[1728293844716,9.3296,2452.7,2452.4,0.40781]
[1728293844717,6.52958,2452.7,2452.4,0.40781]
[1728293844922,1.23958,2452.7,2452.4,0.40781]
[1728293845120,0.8318,2452.7,2452.1,4.0408]
[1728293845319,3.2078,2453.0,2452.1,8.1184]
[1728293845616,5.29,2453.1,2452.4,3.2078]
[1728293845831,5.29,2453.1,2452.5,0.8288]
[1728293846014,0.40774,2452.9,2452.7,0.40776]
[1728293846214,0.40773,2453.0,2452.8,0.40774]
[1728293846621,1.6344,2453.2,2452.5,0.8288]
[1728293846811,0.40771,2453.1,2452.9,0.40773]
[1728293847215,0.8318,2453.2,2453.0,0.40772]
[1728293847415,0.8318,2453.2,2452.7,3.2078]
[1728293847630,5.29,2453.7,2453.0,3.2078]
[1728293847631,6.149,2453.7,2453.0,3.2078]
[1728293847926,6.149,2453.7,2453.3,0.40767]
[1728293847927,0.40764,2453.5,2453.3,0.40767]
[1728293848614,0.40764,2453.5,2453.2,0.40769]
[1728293848827,6.149,2453.7,2453.3,0.40766]
[1728293849014,0.40763,2453.6,2453.1,0.8333]
[1728293849219,6.149,2453.7,2453.1,0.8333]
[1728293849220,0.859,2453.7,2453.4,0.40765]
[1728293849421,0.859,2453.7,2453.5,0.40763]
[1728293849921,0.40758,2453.9,2453.3,3.2078]
[1728293850122,0.40756,2454.0,2453.7,0.40759]
[1728293850311,3.2078,2454.1,2453.7,0.40759]
[1728293850520,0.40755,2454.0,2453.7,0.40759]
[1728293850825,0.40757,2454.0,2453.7,0.40759]
[1728293851318,3.2078,2454.1,2453.4,0.7985]
[1728293851717,0.40756,2454.0,2453.7,0.40759]
[1728293851918,0.40757,2453.9,2453.4,0.40765]
[1728293852228,6.30889,2454.0,2453.3,3.61546]
[1728293852229,0.40762,2453.6,2453.3,3.61546]
[1728293852518,0.40763,2453.6,2453.3,3.61546]
[1728293852719,0.40763,2453.6,2453.3,3.2078]
[1728293853019,0.40758,2453.9,2453.6,0.40761]
[1728293853224,3.61535,2454.1,2453.8,0.40758]
[1728293853422,0.40755,2454.1,2453.8,0.40758]
[1728293853619,5.29,2454.6,2453.9,11.68826939]
[1728293853813,0.40749,2454.4,2454.1,0.40753]
[1728293854016,0.40751,2454.3,2453.9,4.8326]
[1728293854235,0.40751,2454.3,2454.1,0.40754]
[1728293854411,0.40751,2454.3,2454.0,0.40754]
[1728293854617,0.4075,2454.4,2454.1,0.40753]
[1728293854923,5.29,2454.6,2454.1,0.40753]
[1728293855127,0.4075,2454.4,2454.1,0.40753]
[1728293855514,0.4075,2454.4,2453.9,4.8326]
[1728293855722,0.40748,2454.5,2454.3,0.4075]
[1728293855923,5.29,2454.6,2454.3,0.4075]
[1728293856133,5.69746,2454.6,2454.3,0.4075]
[1728293856320,5.29,2454.6,2454.0,0.806]
[1728293856520,0.40746,2454.6,2454.3,0.40749]
[1728293856825,0.40745,2454.7,2454.4,0.40749]
[1728293857018,0.40745,2454.7,2454.5,0.40746]
[1728293857921,5.29,2454.9,2454.2,3.2078]
[1728293858129,0.40743,2454.8,2454.6,0.40745]
[1728293858329,3.2078,2455.0,2454.3,4.36264034]
[1728293858534,3.2078,2455.0,2454.5,0.40746]
[1728293858535,0.40745,2454.7,2454.5,0.40746]
[1728293858828,0.40746,2454.6,2454.4,0.40748]
[1728293859021,0.40745,2454.7,2454.4,0.40748]
[1728293859226,0.40739,2455.0,2454.8,0.40742]
[1728293859423,0.4074,2454.9,2454.7,0.40743]
[1728293859628,0.4074,2454.9,2454.5,3.2078]
[1728293859629,7.14858,2455.3,2454.8,0.40742]
[1728293860019,0.8402,2455.3,2454.6,1.6222]
[1728293860220,0.8402,2455.3,2455.1,0.40736]
[1728293860431,1.24755,2455.3,2454.8,3.2078]
[1728293860621,0.8402,2455.3,2455.1,0.40736]
[1728293860824,0.8402,2455.3,2455.2,0.40735]
[1728293861027,3.2078,2455.6,2454.9,4.0736]
[1728293861227,1.24746,2455.8,2455.0,3.2078]
[1728293861431,1.24746,2455.8,2455.5,0.40729]
[1728293861833,1.24746,2455.8,2455.3,3.2078]
[1728293862130,0.40721,2456.1,2455.4,0.8269]
[1728293862322,0.40722,2456.1,2455.4,0.8269]
[1728293862523,0.4072,2456.2,2455.9,0.40723]
[1728293863522,0.8414,2456.3,2455.4,2.5619]
[1728293863727,0.40724,2455.9,2455.6,0.40728]
[1728293863922,0.40726,2455.8,2455.5,0.4073]
[1728293864330,4.0492,2456.3,2455.4,0.8269]
[1728293864531,1.01798,2456.2,2455.4,0.8269]
[1728293864726,1.01802,2456.1,2455.4,0.8269]
[1728293864932,0.40728,2455.7,2455.4,1.23421]
[1728293865134,1.0181,2455.9,2455.4,0.8269]
[1728293865432,0.40729,2455.6,2455.4,1.23422]
[1728293865632,1.0181,2455.9,2455.1,0.40737]
[1728293865633,3.2078,2455.7,2455.1,0.40737]
[1728293865836,0.8104,2455.5,2455.1,0.40737]